bitfinex-derivatives/quotes_BNBF0:USTF0_20250908
["timestamp","ask_amount","ask_price","bid_price","bid_amount"]
[1757359000062,1.5306017,876.47,875.26,0.19828664]
[1757359001067,1.5306017,876.51,875.26,0.19828664]
[1757359001567,3.5759401,877.67,875.26,0.19828664]
[1757359001568,1.5306017,876.5,875.26,0.19828664]
[1757359005164,1.5306017,876.51,875.26,0.19828664]
[1757359005668,1.5306017,876.52,875.26,0.19828664]
[1757359006369,1.5306017,876.51,875.26,0.19828664]
[1757359006866,1.5306017,876.53,875.26,0.19828664]
[1757359007364,8.1509234,879.32,875.26,0.19828664]
[1757359007365,1.5306017,876.52,875.26,0.19828664]
[1757359007666,1.5306017,876.49,875.26,0.19828664]
[1757359008166,1.5306017,876.5,875.26,0.19828664]
[1757359008770,1.5306017,876.46,875.26,0.19828664]
[1757359011070,1.5306017,876.49,875.26,0.19828664]
[1757359011672,1.5306017,876.49,874.84,1.5245593]
[1757359011870,0.6125194,876.48,874.84,1.5245593]
[1757359012170,0.6125194,876.47,874.84,1.5245593]
[1757359012368,0.6125194,876.46,874.84,1.5245593]
[1757359012570,0.6125194,876.45,874.84,1.5245593]
[1757359012767,0.6125194,876.44,874.84,1.5245593]
[1757359012967,1.5306017,876.49,874.84,1.5245593]
[1757359012968,0.6125194,876.43,874.84,1.5245593]
[1757359013169,0.6125194,876.42,874.84,1.5245593]
[1757359013368,0.6125194,876.41,874.85,1.5245593]
[1757359013571,0.6125194,876.4,874.89,1.5245593]
[1757359013767,0.6125194,876.39,874.89,1.5245593]
[1757359014066,1.5306017,876.43,874.89,1.5245593]
[1757359014067,0.6125194,876.38,874.89,1.5245593]
[1757359014270,0.6125194,876.37,874.89,1.5245593]
[1757359014468,0.6125194,876.36,874.89,1.5245593]
[1757359014768,0.6125194,876.35,874.89,1.5245593]
[1757359015071,0.6125194,876.34,874.88,1.5245593]
[1757359015271,0.6125194,876.34,873.8,3.5573051]
[1757359015272,0.6125194,876.33,874.9,1.5245593]
[1757359015471,0.6125194,876.32,874.9,1.5245593]
[1757359015769,0.6125194,876.31,874.9,1.5245593]
[1757359015972,0.6125194,876.3,874.9,1.5245593]
[1757359016170,0.6125194,876.29,874.86,1.5245593]
[1757359016374,0.6125194,876.28,875.24,0.19832054]
[1757359016572,0.6125194,876.27,875.24,0.19832054]
[1757359016770,0.6125194,876.26,875.24,0.19832054]
[1757359017071,0.6125194,876.25,875.24,0.19832054]
[1757359017269,0.6125194,876.24,875.24,0.19832054]
[1757359017470,0.6125194,876.23,875.24,0.19832054]
[1757359017671,0.6125194,876.22,875.24,0.19832054]
[1757359017875,0.6125194,876.21,875.24,0.19832054]
[1757359018070,0.6125194,876.2,875.24,0.19832054]
[1757359018272,0.6125194,876.19,875.24,0.19832054]
[1757359018475,0.6125194,876.18,875.24,0.19832054]
[1757359018675,0.6125194,876.17,875.24,0.19832054]
[1757359018876,0.6125194,876.16,875.24,0.19832054]
[1757359019076,0.55126747,876.15,875.24,0.19832054]
[1757359019272,1.5306017,876.47,875.24,0.19832054]
[1757359019273,1.5306017,876.48,875.24,0.19832054]
[1757359019476,1.5306017,876.47,875.24,0.19832054]
[1757359019878,1.5306017,876.44,875.24,0.19832054]
[1757359020877,1.5306017,876.45,875.24,0.19832054]
[1757359021174,1.5306017,876.48,875.24,0.19832054]
[1757359022775,1.5306017,876.51,875.24,0.19832054]
[1757359023179,1.5306017,876.5,875.24,0.19832054]
[1757359025580,1.5306017,876.46,875.24,0.19832054]
[1757359026282,1.5306017,876.5,875.24,0.19832054]
[1757359026581,1.5306017,876.49,875.24,0.19832054]
[1757359026781,1.5306017,876.5,875.24,0.19832054]
[1757359026978,1.5306017,876.49,875.24,0.19832054]
[1757359027682,1.5306017,876.48,875.24,0.19832054]
[1757359029377,2.5542601,877.27,875.24,0.19832054]
[1757359029378,1.5306017,876.47,875.24,0.19832054]
[1757359029779,1.5306017,876.46,875.24,0.19832054]
[1757359030680,1.5306017,876.43,875.24,0.19832054]
[1757359030880,1.5306017,876.41,875.24,0.19832054]
[1757359031084,0.61258742,876.4,875.24,0.19832054]
[1757359031384,0.61258742,876.39,875.24,0.19832054]
[1757359031683,0.61258742,876.38,875.24,0.19832054]
[1757359031983,0.61258742,876.37,875.24,0.19832054]
[1757359032180,0.61258742,876.36,875.24,0.19832054]
[1757359032380,0.61258742,876.35,875.24,0.19832054]
[1757359032581,0.61258742,876.34,875.24,0.19832054]
[1757359032779,0.61258742,876.33,875.24,0.19832054]
[1757359032982,0.61258742,876.32,875.24,0.19832054]
[1757359033181,0.61258742,876.31,875.24,0.19832054]
[1757359033383,0.61258742,876.3,875.24,0.19832054]
[1757359033685,0.61258742,876.29,875.24,0.19832054]
[1757359033889,0.61258742,876.28,875.24,0.19832054]
[1757359034187,0.61258742,876.27,875.24,0.19832054]
[1757359034389,0.61258742,876.26,875.24,0.19832054]
[1757359034586,0.61258742,876.25,875.24,0.19832054]
[1757359034790,0.61258742,876.24,875.24,0.19832054]
[1757359035090,0.61258742,876.23,875.24,0.19832054]
[1757359035290,0.61258742,876.22,875.24,0.19832054]
[1757359035489,0.61258742,876.21,875.24,0.19832054]
[1757359035686,0.61258742,876.2,875.24,0.19832054]
[1757359035988,1.5306017,876.41,875.24,0.19832054]
[1757359035989,0.61258742,876.19,875.24,0.19832054]
[1757359036185,0.61258742,876.18,875.24,0.19832054]
[1757359036390,0.61258742,876.17,875.24,0.19832054]
[1757359036690,1.5306017,876.43,875.24,0.19832054]
[1757359036691,0.61258742,876.16,875.24,0.19832054]
[1757359036890,0.61258742,876.15,875.24,0.19832054]
[1757359037187,0.55132868,876.14,875.24,0.19832054]
[1757359037390,1.5306017,876.43,875.24,0.19832054]
[1757359037988,1.5306017,876.4,875.24,0.19832054]
[1757359038794,1.5306017,876.41,875.24,0.19832054]
[1757359039397,1.5306017,876.4,875.24,0.19832054]
[1757359040092,2.5542601,877.15,875.24,0.19832054]
[1757359040093,1.5306017,876.39,875.24,0.19832054]
[1757359040494,1.5306017,876.4,875.24,0.19832054]
[1757359041094,1.5306017,876.43,875.24,0.19832054]
[1757359042399,1.5306017,876.42,875.24,0.19832054]
[1757359043396,1.5306017,876.41,875.24,0.19832054]
[1757359043697,1.5306017,876.37,875.24,0.19832054]
[1757359043897,1.5306017,876.38,875.24,0.19832054]
[1757359044401,1.5306017,876.37,875.24,0.19832054]
[1757359045102,1.5306017,876.38,875.24,0.19832054]
[1757359045598,1.37754154,876.36,875.24,0.19832054]
[1757359045902,2.5542601,877.09,875.24,0.19832054]
[1757359046102,2.5542601,877.42,875.24,0.19832054]
[1757359046601,2.5542601,877.47,875.24,0.19832054]
[1757359048198,2.5542601,877.48,875.24,0.19832054]
[1757359048700,2.5542601,877.47,875.24,0.19832054]
[1757359049201,0.61112776,877.46,875.24,0.19832054]
[1757359049405,0.61112776,877.45,875.24,0.19832054]
[1757359049702,0.61112776,877.44,875.24,0.19832054]
[1757359049902,0.61112776,877.43,875.24,0.19832054]
[1757359050100,0.61112776,877.42,875.24,0.19832054]
[1757359050403,0.61112776,877.41,875.24,0.19832054]
[1757359050701,0.61112776,877.4,875.24,0.19832054]
[1757359050900,0.61112776,877.39,875.24,0.19832054]
[1757359051204,0.61112776,877.38,875.24,0.19832054]
[1757359051405,2.5542601,877.36,875.24,0.19832054]
[1757359051605,0.61112776,877.35,875.24,0.19832054]
[1757359051904,0.61112776,877.34,875.24,0.19832054]
[1757359052102,0.61112776,877.33,875.24,0.19832054]
[1757359052301,0.61112776,877.32,875.24,0.19832054]
[1757359052606,0.61112776,877.31,875.24,0.19832054]
[1757359052805,0.61112776,877.3,875.24,0.19832054]
[1757359053002,0.61112776,877.29,875.24,0.19832054]
[1757359053202,0.61112776,877.28,875.24,0.19832054]
[1757359053402,0.61112776,877.27,875.24,0.19832054]
[1757359053705,0.61112776,877.26,875.24,0.19832054]
[1757359053904,0.61112776,877.25,875.24,0.19832054]
[1757359054105,0.61112776,877.24,875.24,0.19832054]
[1757359054306,0.61112776,877.23,875.24,0.19832054]
[1757359054506,0.61112776,877.22,875.24,0.19832054]
[1757359054808,0.61112776,877.21,875.24,0.19832054]
[1757359055016,0.61112776,877.2,875.24,0.19832054]
[1757359055305,0.61112776,877.19,875.24,0.19832054]
[1757359055608,2.5542601,877.63,875.24,0.19832054]
[1757359055609,0.61112776,877.18,875.24,0.19832054]
[1757359055806,0.61112776,877.17,875.24,0.19832054]
[1757359056010,0.61112776,877.16,875.24,0.19832054]
[1757359056209,0.61112776,877.15,875.24,0.19832054]
[1757359056412,0.61112776,877.14,875.24,0.19832054]
[1757359056607,0.61112776,877.13,875.24,0.19832054]
[1757359056907,0.61112776,877.12,875.24,0.19832054]
[1757359057111,0.61112776,877.11,875.24,0.19832054]
[1757359057310,0.61112776,877.1,875.24,0.19832054]
[1757359057507,0.61112776,877.09,875.24,0.19832054]
[1757359057708,0.61112776,877.08,875.24,0.19832054]
[1757359057909,0.61112776,877.07,875.24,0.19832054]
[1757359058114,0.61112776,877.06,875.24,0.19832054]
[1757359058310,0.61112776,877.05,875.24,0.19832054]
[1757359058609,2.5542601,877.53,875.24,0.19832054]
[1757359058809,0.61074436,877.52,875.24,0.19832054]
[1757359059109,0.61074436,877.51,875.24,0.19832054]
[1757359059310,0.61074436,877.5,875.24,0.19832054]
[1757359059509,0.61074436,877.49,875.24,0.19832054]
[1757359059710,0.61074436,877.48,875.24,0.19832054]
[1757359059910,0.61074436,877.47,875.24,0.19832054]
[1757359060109,0.61074436,877.46,875.24,0.19832054]
[1757359060309,0.61074436,877.45,875.24,0.19832054]
[1757359060510,0.61074436,877.44,875.24,0.19832054]
[1757359060711,0.61074436,877.43,875.24,0.19832054]
[1757359060911,0.61074436,877.42,875.24,0.19832054]
[1757359061112,0.61074436,877.41,875.24,0.19832054]
[1757359061310,0.61074436,877.4,875.24,0.19832054]
[1757359061510,0.61074436,877.39,875.24,0.19832054]
[1757359061814,0.61074436,877.38,875.24,0.19832054]
[1757359062014,0.61074436,877.37,875.24,0.19832054]
[1757359062211,0.61074436,877.36,875.24,0.19832054]
[1757359062522,0.61074436,877.35,875.24,0.19832054]
[1757359062716,2.5542601,877.48,875.24,0.19832054]
[1757359062717,0.61074436,877.34,875.24,0.19832054]
[1757359062914,0.61074436,877.33,875.24,0.19832054]
[1757359063117,0.61074436,877.32,875.24,0.19832054]
[1757359063316,0.61074436,877.31,875.24,0.19832054]
[1757359063615,0.61074436,877.3,875.24,0.19832054]
[1757359063915,2.5542601,877.23,875.24,0.19832054]
[1757359064115,0.61074436,877.22,875.24,0.19832054]
[1757359064318,2.5542601,877.13,875.24,0.19832054]
[1757359064516,0.61074436,877.12,875.24,0.19832054]
[1757359064715,0.61074436,877.11,875.24,0.19832054]
[1757359064919,0.61074436,877.1,875.24,0.19832054]
[1757359065120,0.61074436,877.09,875.24,0.19832054]
[1757359065320,0.61074436,877.08,875.24,0.19832054]
[1757359065517,0.61074436,877.07,875.24,0.19832054]
[1757359065717,1.5333914,876.43,875.24,0.19832054]
[1757359065920,2.5542601,877.19,875.24,0.19832054]
[1757359066518,2.5542601,877.26,875.24,0.19832054]
[1757359067624,2.5542601,877.27,875.24,0.19832054]
[1757359068025,2.5542601,877.3,875.24,0.19832054]
[1757359070628,2.5542601,877.23,875.24,0.19832054]
[1757359071131,2.5542601,877.29,875.24,0.19832054]
[1757359071731,2.5542601,877.3,875.24,0.19832054]
[1757359072630,2.5542601,877.29,875.24,0.19832054]
[1757359073132,2.5542601,877.39,875.24,0.19832054]
[1757359075331,2.5542601,877.33,875.24,0.19832054]
[1757359076433,2.5542601,877.38,875.24,0.19832054]
[1757359080337,3.5759401,877.81,875.24,0.19832054]
[1757359080338,2.5542601,877.33,875.24,0.19832054]
[1757359081546,2.5542601,877.17,875.24,0.19832054]
[1757359084037,2.5542601,877.16,875.24,0.19832054]
[1757359084539,2.5542601,877.17,875.24,0.19832054]
[1757359085039,2.5542601,877.16,875.24,0.19832054]
[1757359085539,2.5542601,877.22,875.24,0.19832054]
[1757359085944,1.5332128,876.46,875.24,0.19832054]
[1757359086141,1.5332128,876.52,875.24,0.19832054]
[1757359087340,1.5332128,876.49,875.24,0.19832054]
[1757359087541,1.5332128,876.63,875.24,0.19832054]
[1757359088044,1.5332128,876.75,875.33,1.0209806]
[1757359088242,1.5332128,876.75,875.32,1.0209806]
[1757359088642,1.5332128,876.73,875.33,1.0209806]
[1757359089044,1.5332128,876.73,875.34,1.0209806]
[1757359089247,1.5332128,876.73,875.33,1.0209806]
[1757359090244,1.5332128,876.74,875.34,1.0209806]
[1757359091046,1.5332128,877.44,875.24,0.19832054]
[1757359091251,1.5332128,877.45,875.24,0.19832054]
[1757359091851,1.5332128,877.43,875.24,0.19832054]
[1757359092245,1.5332128,877.44,875.24,0.19832054]
[1757359092746,1.5332128,877.41,875.24,0.19832054]
[1757359093249,1.5332128,877.42,875.24,0.19832054]
[1757359093452,1.5332128,877.41,875.24,0.19832054]
[1757359093752,0.19823582,878.15,875.24,0.19832054]
[1757359093753,1.5332128,877.4,875.24,0.19832054]
[1757359094049,1.5332128,877.41,875.24,0.19832054]
[1757359095050,1.5332128,876.88,875.43,1.0209806]
[1757359095352,1.5332128,876.89,875.43,1.0209806]
[1757359096152,1.5332128,876.92,875.41,1.0209806]
[1757359097254,1.5332128,876.89,875.42,1.0209806]
[1757359097754,1.5332128,876.85,875.37,1.0209806]
[1757359099257,1.5332128,876.82,875.38,1.0209806]
[1757359100156,1.5332128,876.83,875.38,1.0209806]
[1757359100357,1.5332128,876.82,875.38,1.0209806]
[1757359100557,1.5332128,876.76,875.42,1.0209806]
[1757359101158,1.5332128,876.81,875.39,1.0209806]
[1757359101358,1.5332128,876.8,875.39,1.0209806]
[1757359102158,1.5332128,876.81,875.39,1.0209806]
[1757359102359,1.5332128,876.76,875.42,1.0209806]
[1757359102954,1.5332128,876.75,875.42,1.0209806]
[1757359103158,1.5332128,876.77,875.41,1.0209806]
[1757359105260,1.5332128,876.78,875.4,1.0209806]
[1757359105556,1.5332128,876.78,875.41,1.0209806]
[1757359106361,1.5332128,876.82,875.38,1.0209806]
[1757359107756,1.5332128,876.86,875.38,1.0209806]
[1757359107958,1.5332128,876.86,875.42,1.0209806]
[1757359108363,1.5332128,876.86,875.41,1.0209806]
[1757359108960,1.5332128,876.89,875.4,1.0209806]
[1757359109160,1.5332128,876.9,875.39,1.0209806]
[1757359109459,1.5332128,876.89,875.4,1.0209806]
[1757359111162,1.5332128,876.92,875.38,1.0209806]
[1757359113768,1.5332128,876.91,875.37,1.0209806]
[1757359114067,1.5332128,876.91,875.36,1.0209806]
[1757359114866,1.5332128,876.92,875.35,1.0209806]
[1757359115869,1.5332128,876.89,875.37,1.0209806]
[1757359116167,1.5332128,876.92,875.35,1.0209806]
[1757359116665,1.5332128,876.93,875.33,1.0209806]
[1757359117667,1.5332128,876.92,875.33,1.0209806]
[1757359117870,1.5332128,876.92,875.32,1.0209806]
[1757359118072,0.19823582,878.15,875.31,1.0209806]
[1757359118073,1.5332128,876.94,875.31,1.0209806]
[1757359118270,1.5332128,877.07,875.24,0.19832054]
[1757359118467,1.5332128,877.04,875.24,0.19832054]
[1757359118777,1.5332128,877.05,875.24,0.19832054]
[1757359118978,1.5332128,877.06,875.24,0.19832054]
[1757359119179,1.5332128,877.07,875.24,0.19832054]
[1757359119377,1.5332128,877.08,875.24,0.19832054]
[1757359119574,1.5332128,877.09,875.24,0.19832054]
[1757359119980,1.5332128,877.1,875.24,0.19832054]
[1757359120478,1.5332128,877.11,875.24,0.19832054]
[1757359120880,1.5332128,877.13,875.24,0.19832054]
[1757359121176,1.5332128,877.12,875.24,0.19832054]
[1757359121380,1.5332128,877.13,875.24,0.19832054]
[1757359121878,1.5332128,877.12,875.24,0.19832054]
[1757359122082,1.5332128,877.11,875.24,0.19832054]
[1757359122779,1.5332128,877.12,875.24,0.19832054]
[1757359123280,1.5332128,877.05,875.24,0.19832054]
[1757359123682,1.5332128,877.06,875.24,0.19832054]
[1757359124478,1.5332128,877.05,875.24,0.19832054]
[1757359124682,1.5332128,877.04,875.24,0.19832054]
[1757359125081,1.5332128,877.02,875.24,1.21930114]
[1757359125382,1.5332128,877.03,875.24,1.21930114]
[1757359125683,1.5332128,877.02,875.24,1.21930114]
[1757359126080,1.5332128,877.03,875.24,0.19832054]
[1757359126283,1.5332128,877.03,875.24,1.21930114]
[1757359126480,1.5332128,877.02,875.24,1.21930114]
[1757359126684,1.5332128,877.01,875.25,1.0209806]
[1757359126881,1.5332128,877.02,875.24,1.21930114]
[1757359127785,1.5332128,876.99,875.24,0.19832054]
[1757359128186,1.5332128,876.98,875.24,0.19832054]
[1757359128480,1.5332128,876.97,875.24,0.19832054]
[1757359128982,1.5332128,876.95,875.24,1.21930114]
[1757359129188,1.5332128,876.83,875.24,0.19832054]
[1757359129486,1.5332128,876.82,875.24,0.19832054]
[1757359129685,1.5332128,876.81,875.24,0.19832054]
[1757359130081,1.5332128,876.8,875.24,0.19832054]
[1757359130286,1.5332128,876.78,875.24,0.19832054]
[1757359130486,1.5332128,876.77,875.24,0.19832054]
[1757359130686,1.5332128,876.72,875.24,0.19832054]
[1757359130886,1.5332128,876.69,875.24,0.19832054]
[1757359131186,0.62492681,876.68,875.24,0.19832054]
[1757359131382,0.62492681,876.67,875.24,0.19832054]
[1757359131583,0.62492681,876.66,875.24,0.19832054]
[1757359131781,0.62492681,876.65,875.24,0.19832054]
[1757359131982,0.62492681,876.64,875.24,0.19832054]
[1757359132287,0.62492681,876.63,875.24,0.19832054]
[1757359132487,0.62492681,876.62,875.24,0.19832054]
[1757359132686,0.62492681,876.61,875.24,0.19832054]
[1757359132889,0.62492681,876.6,875.24,0.19832054]
[1757359133186,0.62492681,876.59,875.24,0.19832054]
[1757359133390,0.62492681,876.58,875.24,0.19832054]
[1757359133586,0.62492681,876.57,875.24,0.19832054]
[1757359133788,0.62492681,876.56,875.24,0.19832054]
[1757359133988,0.62492681,876.55,875.24,0.19832054]
[1757359134188,0.62492681,876.54,875.24,0.19832054]
[1757359134386,0.62492681,876.53,875.24,0.19832054]
[1757359134589,1.5332128,876.65,875.24,0.19832054]
[1757359134590,0.62492681,876.52,875.24,0.19832054]
[1757359134790,0.62492681,876.51,875.24,0.19832054]
[1757359134989,0.62492681,876.5,875.24,0.19832054]
[1757359135192,0.62492681,876.49,875.24,0.19832054]
[1757359135390,0.62492681,876.48,875.24,0.19832054]
[1757359135588,0.62492681,876.47,875.24,0.19832054]
[1757359135793,0.62492681,876.46,875.24,0.19832054]
[1757359135993,0.62492681,876.45,875.24,0.19832054]
[1757359136190,0.62492681,876.44,875.24,0.19832054]
[1757359136394,0.62492681,876.43,875.24,0.19832054]
[1757359136691,0.62492681,876.42,875.24,0.19832054]
[1757359136889,0.62492681,876.41,875.24,0.19832054]
[1757359137092,0.62492681,876.4,875.24,0.19832054]
[1757359137292,0.62492681,876.39,875.24,0.19832054]
[1757359137491,0.62492681,876.38,875.24,0.19832054]
[1757359137791,0.62492681,876.37,875.24,0.19832054]
[1757359137991,0.62492681,876.36,875.24,0.19832054]
[1757359138191,0.62492681,876.35,875.24,0.19832054]
[1757359138391,0.62492681,876.34,875.24,0.19832054]
[1757359138593,0.62492681,876.33,875.24,0.19832054]
[1757359138892,0.62492681,876.32,875.24,0.19832054]
[1757359139093,0.62492681,876.31,875.24,0.19832054]
[1757359139395,0.62492681,876.3,875.24,0.19832054]
[1757359139593,0.62492681,876.29,875.24,0.19832054]
[1757359139796,0.62492681,876.28,875.24,0.19832054]
[1757359139994,0.62492681,876.27,875.24,0.19832054]
[1757359140195,0.62492681,876.26,875.24,0.19832054]
[1757359140394,0.62492681,876.25,875.24,0.19832054]
[1757359140593,0.62492681,876.24,875.24,0.19832054]
[1757359140794,0.62492681,876.23,875.24,0.19832054]
[1757359140993,0.62492681,876.22,875.24,0.19832054]
[1757359141194,0.62492681,876.21,875.24,0.19832054]
[1757359141397,0.62492681,876.2,875.24,0.19832054]
[1757359141594,2.5542601,877.43,875.24,0.19832054]
[1757359141595,0.62492681,876.19,875.24,0.19832054]
[1757359141795,0.62492681,876.18,875.24,0.19832054]
[1757359141998,0.62492681,876.17,875.24,0.19832054]
[1757359142198,0.62492681,876.16,875.24,0.19832054]
[1757359142398,0.62492681,876.15,875.24,0.19832054]
[1757359142698,0.62492681,876.14,875.24,0.19832054]
[1757359142898,0.62492681,876.13,875.24,0.19832054]
[1757359143100,0.62492681,876.12,875.24,0.19832054]
[1757359143398,0.62492681,876.11,875.24,0.19832054]
[1757359143596,0.62492681,876.1,875.24,0.19832054]
[1757359143793,1.5332128,876.42,875.24,0.19832054]
[1757359143794,0.62492681,876.09,875.24,0.19832054]
[1757359143996,0.62492681,876.08,875.24,0.19832054]
[1757359144201,0.62492681,876.07,875.24,0.19832054]
[1757359144395,0.62492681,876.06,875.24,0.19832054]
[1757359144697,0.62492681,876.05,875.24,0.19832054]
[1757359144901,0.62492681,876.04,875.24,0.19832054]
[1757359145196,0.62492681,876.03,875.24,0.19832054]
[1757359145401,0.62492681,876.02,875.24,0.19832054]
[1757359145701,0.62492681,876.01,875.24,0.19832054]
[1757359145900,0.62492681,876.0,875.24,0.19832054]
[1757359146198,0.62492681,875.99,875.24,0.19832054]
[1757359146400,0.62492681,875.98,875.24,0.19832054]
[1757359146598,0.62492681,875.97,875.24,0.19832054]
[1757359146803,0.62492681,875.96,875.24,0.19832054]
[1757359146999,1.5332128,876.41,875.24,0.19832054]
[1757359147205,0.62304286,876.4,875.24,0.19832054]
[1757359147499,0.62304286,876.39,875.24,0.19832054]
[1757359147700,0.62304286,876.38,875.24,0.19832054]
[1757359147904,0.62304286,876.37,875.24,0.19832054]
[1757359148203,0.62304286,876.36,875.24,0.19832054]
[1757359148401,0.62304286,876.35,875.24,0.19832054]
[1757359148602,0.62304286,876.34,875.24,0.19832054]
[1757359148800,0.62304286,876.33,875.24,0.19832054]
[1757359149000,0.62304286,876.32,875.24,0.19832054]
[1757359149301,0.62304286,876.31,875.24,0.19832054]
[1757359149503,0.62304286,876.3,875.24,0.19832054]
[1757359149704,0.62304286,876.29,875.24,0.19832054]
[1757359149904,0.62304286,876.28,875.24,0.19832054]
[1757359150204,0.62304286,876.27,875.24,0.19832054]
[1757359150405,0.62304286,876.26,875.24,0.19832054]
[1757359150605,0.62304286,876.25,875.24,0.19832054]
[1757359150802,0.62304286,876.24,875.24,0.19832054]
[1757359151101,0.62304286,876.23,875.24,0.19832054]
[1757359151401,0.62304286,876.22,875.24,0.19832054]
[1757359151601,0.62304286,876.21,875.24,0.19832054]
[1757359151802,0.62304286,876.2,875.24,0.19832054]
[1757359152002,0.62304286,876.19,875.24,0.19832054]
[1757359152207,0.62304286,876.18,875.24,0.19832054]
[1757359152405,0.62304286,876.17,875.24,0.19832054]
[1757359152603,0.62304286,876.16,875.24,0.19832054]
[1757359152802,0.62304286,876.15,875.24,0.19832054]
[1757359153004,0.62304286,876.14,875.24,0.19832054]
[1757359153203,0.62304286,876.13,875.24,0.19832054]
[1757359153401,0.62304286,876.12,875.24,0.19832054]
[1757359153607,0.62304286,876.11,875.24,0.19832054]
[1757359153906,0.62304286,876.1,875.24,0.19832054]
[1757359154103,0.62304286,876.09,875.24,0.19832054]
[1757359154306,0.62304286,876.08,875.24,0.19832054]
[1757359154506,0.62304286,876.07,875.24,0.19832054]
[1757359154704,0.62304286,876.06,875.24,0.19832054]
[1757359155003,0.62304286,876.05,875.24,0.19832054]
[1757359155209,0.62304286,876.04,875.24,0.19832054]
[1757359155405,0.62304286,876.03,875.24,0.19832054]
[1757359155708,0.62304286,876.02,875.24,0.19832054]
[1757359155904,0.62304286,876.01,875.24,0.19832054]
[1757359156104,0.62304286,876.0,875.24,0.19832054]
[1757359156306,0.62304286,875.99,875.24,0.19832054]
[1757359156509,0.62304286,875.98,875.24,0.19832054]
[1757359156809,0.62304286,875.97,875.24,0.19832054]
[1757359157003,0.62304286,875.96,875.24,0.19832054]
[1757359157206,0.62304286,875.95,875.24,0.19832054]
[1757359157406,0.62304286,875.94,875.24,0.19832054]
[1757359157608,0.62304286,875.93,875.24,0.19832054]
[1757359157810,0.62304286,875.92,875.24,0.19832054]
[1757359158009,0.62304286,875.91,875.24,0.19832054]
[1757359158206,0.62304286,875.9,875.24,0.19832054]
[1757359158507,0.62304286,875.89,875.24,0.19832054]
[1757359158706,0.62304286,875.88,875.24,0.19832054]
[1757359159006,0.62304286,875.87,875.24,0.19832054]
[1757359159314,0.62304286,875.86,875.24,0.19832054]
[1757359159610,0.62304286,875.85,875.24,0.19832054]
[1757359159810,0.62304286,875.84,875.24,0.19832054]
[1757359160110,0.62304286,875.83,875.24,0.19832054]
[1757359160312,0.62304286,875.82,875.24,0.19832054]
[1757359160508,0.62304286,875.81,875.24,0.19832054]
[1757359160809,0.62304286,875.8,875.24,0.19832054]
[1757359161006,0.62304286,875.79,875.24,0.19832054]
[1757359161207,0.62304286,875.78,875.24,0.19832054]
[1757359161408,0.62304286,875.77,875.24,0.19832054]
[1757359161607,0.62304286,875.76,875.24,0.19832054]
[1757359161809,0.62304286,875.75,875.24,0.19832054]
[1757359162008,0.62304286,875.74,875.24,0.19832054]
[1757359162207,1.5332128,876.18,875.24,0.19832054]
[1757359162508,0.62170806,876.17,875.24,0.19832054]
[1757359162713,0.62170806,876.16,875.24,0.19832054]
[1757359163007,0.62170806,876.15,875.24,0.19832054]
[1757359163212,0.62170806,876.14,875.24,0.19832054]
[1757359163411,0.62170806,876.13,875.24,0.19832054]
[1757359163707,0.62170806,876.12,875.24,0.19832054]
[1757359163911,0.62170806,876.11,875.24,0.19832054]
[1757359164111,0.62170806,876.1,875.24,0.19832054]
[1757359164309,0.62170806,876.09,875.24,0.19832054]
[1757359164509,0.62170806,876.08,875.24,0.19832054]
[1757359164709,0.62170806,876.07,875.24,0.19832054]
[1757359164914,0.62170806,876.06,875.24,0.19832054]
[1757359165114,0.62170806,876.05,875.24,0.19832054]
[1757359165312,0.62170806,876.04,875.24,0.19832054]
[1757359165512,1.5332128,876.19,875.24,0.19832054]
[1757359165513,0.62170806,876.03,875.24,0.19832054]
[1757359165808,1.5332128,876.19,875.24,0.19832054]
[1757359165809,0.62170806,876.02,875.24,0.19832054]
[1757359166008,0.62170806,876.01,875.24,0.19832054]
[1757359166213,0.62170806,876.0,875.24,0.19832054]
[1757359166411,0.62170806,875.99,875.24,0.19832054]
[1757359166609,0.62170806,875.98,875.24,0.19832054]
[1757359166811,0.62170806,875.97,875.24,0.19832054]
[1757359167010,0.62170806,875.96,875.24,0.19832054]
[1757359167211,0.62170806,875.95,875.24,0.19832054]
[1757359167414,0.62170806,875.94,875.24,0.19832054]
[1757359167610,1.5332128,876.26,875.24,0.19832054]
[1757359167611,0.62170806,875.93,875.24,0.19832054]
[1757359167812,0.62170806,875.92,875.24,0.19832054]
[1757359168016,0.62170806,875.91,875.24,0.19832054]
[1757359168216,0.62170806,875.9,875.24,0.19832054]
[1757359168415,0.62170806,875.89,875.24,0.19832054]
[1757359168613,0.62170806,875.88,875.24,0.19832054]
[1757359168912,0.62170806,875.87,875.24,0.19832054]
[1757359169216,1.5332128,876.25,875.24,0.19832054]
[1757359169217,0.62170806,875.86,875.24,0.19832054]
[1757359169413,0.62170806,875.85,875.24,0.19832054]
[1757359169612,1.5332128,876.25,875.24,0.19832054]
[1757359169613,0.62170806,875.84,875.24,0.19832054]
[1757359169813,0.62170806,875.83,875.24,0.19832054]
[1757359170016,0.62170806,875.82,875.24,0.19832054]
[1757359170214,0.62170806,875.81,875.24,0.19832054]
[1757359170415,0.62170806,875.8,875.24,0.19832054]
[1757359170612,0.62170806,875.79,875.24,0.19832054]
[1757359170816,0.62170806,875.78,875.24,0.19832054]
[1757359171015,0.62170806,875.77,875.24,0.19832054]